[Event "*** Titled Tuesday Blitz"]
[Site "Chess.com"]
[Date "2020.11.10"]
[Round "5"]
[White "Qvalda"]
[Black "Ermito2020"]
[Result "1-0"]
[WhiteElo "2433"]
[BlackElo "2582"]
[TimeControl "180+1"]
[EndTime "10:59:22 PST"]
[Termination "Qvalda won by resignation"]

1. e4 {[%clk 0:03:00.9]} 1... c6 {[%clk 0:03:00.5]} 2. d4 {[%clk 0:02:59.4]}
2... d5 {[%clk 0:03:01.4]} 3. exd5 {[%clk 0:02:59.3]} 3... cxd5 {[%clk
0:03:01.3]} 4. Bd3 {[%clk 0:02:58.6]} 4... Nc6 {[%clk 0:03:01.8]} 5. c3 {[%clk
0:02:59.1]} 5... Nf6 {[%clk 0:03:01.9]} 6. h3 {[%clk 0:02:58.4]} 6... g6 {[%clk
0:03:01.8]} 7. Nf3 {[%clk 0:02:56.8]} 7... Bf5 {[%clk 0:03:02.4]} 8. Bxf5 {[%clk
0:02:55.9]} 8... gxf5 {[%clk 0:03:02.3]} 9. Qc2 {[%clk 0:02:56.6]} 9... e6
{[%clk 0:03:02.2]} 10. g4 {[%clk 0:02:57.4]} 10... fxg4 {[%clk 0:02:56.8]} 11.
hxg4 {[%clk 0:02:58.3]} 11... Nxg4 {[%clk 0:02:36.3]} 12. Bg5 {[%clk 0:02:36]}
12... Be7 {[%clk 0:02:28.7]} 13. Bxe7 {[%clk 0:02:34.4]} 13... Qxe7 {[%clk
0:02:27.6]} 14. Rxh7 {[%clk 0:02:35.1]} 14... O-O-O {[%clk 0:02:24.4]} 15. Nbd2
{[%clk 0:02:33]} 15... Qf6 {[%clk 0:02:11.4]} 16. O-O-O {[%clk 0:02:23.3]} 16...
Rxh7 {[%clk 0:01:59.6]} 17. Qxh7 {[%clk 0:02:24.2]} 17... Rh8 {[%clk 0:01:59.5]}
18. Qc2 {[%clk 0:02:21.3]} 18... Nxf2 {[%clk 0:01:52.5]} 19. Rf1 {[%clk
0:02:20.8]} 19... Rh1 {[%clk 0:01:52.2]} 20. Rxh1 {[%clk 0:02:18.7]} 20... Nxh1
{[%clk 0:01:53.1]} 21. Qh7 {[%clk 0:02:19]} 21... Nf2 {[%clk 0:01:49.4]} 22.
Qg8+ {[%clk 0:02:18.3]} 22... Kd7 {[%clk 0:01:47.7]} 23. Qa8 {[%clk 0:02:14.5]}
23... Kc7 {[%clk 0:01:45.9]} 24. b4 {[%clk 0:02:13.2]} 24... Qd8 {[%clk
0:01:44.6]} 25. Qxd8+ {[%clk 0:02:07.6]} 25... Nxd8 {[%clk 0:01:45.5]} 26. Kc2
{[%clk 0:02:03.9]} 26... Nc6 {[%clk 0:01:43.8]} 27. a4 {[%clk 0:01:58.9]} 27...
Kd6 {[%clk 0:01:41.9]} 28. a5 {[%clk 0:01:56.9]} 28... a6 {[%clk 0:01:41.3]} 29.
Nb3 {[%clk 0:01:56.6]} 29... Ne4 {[%clk 0:01:40.1]} 30. Kd3 {[%clk 0:01:53.7]}
30... f6 {[%clk 0:01:38.6]} 31. Nc5 {[%clk 0:01:51.8]} 31... Nxc5+ {[%clk
0:01:37.9]} 32. dxc5+ {[%clk 0:01:52.7]} 32... Kd7 {[%clk 0:01:34.7]} 33. Nh4
{[%clk 0:01:47.4]} 33... e5 {[%clk 0:01:33]} 34. Nf5 {[%clk 0:01:45.2]} 34...
Ne7 {[%clk 0:01:20.1]} 35. Nd6 {[%clk 0:01:43.3]} 35... Kc6 {[%clk 0:01:20.4]}
36. c4 {[%clk 0:01:38.3]} 36... d4 {[%clk 0:01:17]} 37. Ke4 {[%clk 0:01:30.6]}
37... f5+ {[%clk 0:01:11.6]} 38. Kd3 {[%clk 0:01:02.7]} 38... f4 {[%clk
0:01:10.7]} 39. Ke4 {[%clk 0:01:01.1]} 39... Ng8 {[%clk 0:01:10.2]} 40. Kxe5
{[%clk 0:00:56.3]} 40... d3 {[%clk 0:01:10]} 41. Ne4 {[%clk 0:00:52.5]} 41... f3
{[%clk 0:01:06.2]} 42. Nf2 {[%clk 0:00:38.7]} 42... d2 {[%clk 0:01:05.4]} 43.
Kf4 {[%clk 0:00:37.1]} 43... Nf6 {[%clk 0:00:38]} 44. Kxf3 {[%clk 0:00:36.8]}
44... Nd7 {[%clk 0:00:37.1]} 45. Ke2 {[%clk 0:00:25.7]} 45... Ne5 {[%clk
0:00:37.6]} 46. Kxd2 {[%clk 0:00:25.7]} 46... Nxc4+ {[%clk 0:00:38.1]} 47. Kc3
{[%clk 0:00:26]} 47... Nxa5 {[%clk 0:00:30.7]} 48. Nd3 {[%clk 0:00:16.9]} 48...
Kb5 {[%clk 0:00:27.4]} 49. bxa5 {[%clk 0:00:16]} 49... Kxa5 {[%clk 0:00:27.7]}
50. Kc4 {[%clk 0:00:16.5]} 50... Ka4 {[%clk 0:00:28]} 51. Nf2 {[%clk 0:00:10.9]}
51... a5 {[%clk 0:00:25]} 52. Ne4 {[%clk 0:00:11.1]} 52... Ka3 {[%clk
0:00:25.2]} 53. Nd6 {[%clk 0:00:11.1]} 53... a4 {[%clk 0:00:24.8]} 54. Nxb7
{[%clk 0:00:11.2]} 54... Kb2 {[%clk 0:00:24.8]} 55. Na5 {[%clk 0:00:10.9]} 55...
a3 {[%clk 0:00:24.2]} 56. Nb3 {[%clk 0:00:11]} 56... a2 {[%clk 0:00:25.1]} 57.
c6 {[%clk 0:00:11.2]} 1-0

[Event "*** Titled Tuesday Blitz"]
[Site "Chess.com"]
[Date "2020.11.10"]
[Round "5"]
[White "BigAl"]
[Black "Ze-Pequeno"]
[Result "1-0"]
[WhiteElo "2486"]
[BlackElo "2257"]
[TimeControl "180+1"]
[EndTime "10:59:23 PST"]
[Termination "BigAl won by checkmate"]

1. e4 {[%clk 0:03:00.9]} 1... c5 {[%clk 0:02:58.6]} 2. Nc3 {[%clk 0:03:00.1]}
2... a6 {[%clk 0:02:54.7]} 3. g3 {[%clk 0:02:59.8]} 3... b5 {[%clk 0:02:53.8]}
4. Bg2 {[%clk 0:03:00.5]} 4... Bb7 {[%clk 0:02:54.5]} 5. d3 {[%clk 0:03:00.8]}
5... e6 {[%clk 0:02:54.8]} 6. Nf3 {[%clk 0:03:01.4]} 6... d6 {[%clk 0:02:54.4]}
7. O-O {[%clk 0:03:01.8]} 7... Nc6 {[%clk 0:02:54.4]} 8. Re1 {[%clk 0:03:00.2]}
8... Nf6 {[%clk 0:02:54.3]} 9. d4 {[%clk 0:02:58.8]} 9... cxd4 {[%clk 0:02:54]}
10. Nxd4 {[%clk 0:02:57.8]} 10... Qc7 {[%clk 0:02:53.7]} 11. a4 {[%clk
0:02:54.4]} 11... b4 {[%clk 0:02:52.3]} 12. Nd5 {[%clk 0:02:54.1]} 12... exd5
{[%clk 0:02:53.2]} 13. exd5+ {[%clk 0:02:54]} 13... Ne5 {[%clk 0:02:51.9]} 14.
f4 {[%clk 0:02:51]} 14... Be7 {[%clk 0:02:52.1]} 15. fxe5 {[%clk 0:02:47.8]}
15... dxe5 {[%clk 0:02:51.1]} 16. Nf5 {[%clk 0:02:40.2]} 16... Bc5+ {[%clk
0:02:49.8]} 17. Kh1 {[%clk 0:02:36.7]} 17... O-O {[%clk 0:02:50.7]} 18. Bg5
{[%clk 0:02:14.5]} 18... Nd7 {[%clk 0:02:09.4]} 19. Qg4 {[%clk 0:01:25.9]} 19...
g6 {[%clk 0:02:07.6]} 20. Ne7+ {[%clk 0:01:23]} 20... Bxe7 {[%clk 0:01:46.3]}
21. Bxe7 {[%clk 0:01:22.5]} 21... Rfe8 {[%clk 0:01:46.6]} 22. Bxb4 {[%clk
0:01:17.1]} 22... f5 {[%clk 0:01:35]} 23. Qh4 {[%clk 0:01:17]} 23... Qxc2 {[%clk
0:01:06]} 24. Rac1 {[%clk 0:01:14.3]} 24... Qxa4 {[%clk 0:00:56.2]} 25. Rc7
{[%clk 0:01:07]} 25... Rab8 {[%clk 0:00:48.7]} 26. Qc4 {[%clk 0:00:42.6]} 26...
Kh8 {[%clk 0:00:20.4]} 27. b3 {[%clk 0:00:40]} 27... Qb5 {[%clk 0:00:19.7]} 28.
Qxb5 {[%clk 0:00:39.2]} 28... axb5 {[%clk 0:00:20.6]} 29. Rxd7 {[%clk
0:00:39.7]} 29... e4 {[%clk 0:00:19.9]} 30. Bc3+ {[%clk 0:00:35.5]} 30... Kg8
{[%clk 0:00:13.9]} 31. Rg7+ {[%clk 0:00:31.7]} 31... Kf8 {[%clk 0:00:13.6]} 32.
d6 {[%clk 0:00:24.9]} 32... b4 {[%clk 0:00:13.4]} 33. Bb2 {[%clk 0:00:22.2]}
33... Red8 {[%clk 0:00:05.3]} 34. Rxh7 {[%clk 0:00:19.4]} 34... Kg8 {[%clk
0:00:04.9]} 35. Rg7+ {[%clk 0:00:18.3]} 35... Kf8 {[%clk 0:00:05.1]} 36. Rh7
{[%clk 0:00:18.5]} 36... Kg8 {[%clk 0:00:04.6]} 37. Rg7+ {[%clk 0:00:17.8]}
37... Kf8 {[%clk 0:00:04.9]} 38. d7 {[%clk 0:00:17.9]} 38... Bc6 {[%clk
0:00:03.6]} 39. Rd1 {[%clk 0:00:18.3]} 39... Rb7 {[%clk 0:00:03.6]} 40. Rxg6
{[%clk 0:00:17]} 40... Rbxd7 {[%clk 0:00:03.7]} 41. Rf1 {[%clk 0:00:16.8]} 41...
Rd5 {[%clk 0:00:03.1]} 42. Rxc6 {[%clk 0:00:16.5]} 42... Kf7 {[%clk 0:00:03.4]}
43. Bxe4 {[%clk 0:00:15]} 43... Rd2 {[%clk 0:00:02]} 44. Rxf5+ {[%clk
0:00:14.3]} 44... Ke7 {[%clk 0:00:02.3]} 45. Rc7+ {[%clk 0:00:12.8]} 45... Ke6
{[%clk 0:00:02.1]} 46. Rf6# {[%clk 0:00:11.9]} 1-0

[Event "*** Titled Tuesday Blitz"]
[Site "Chess.com"]
[Date "2020.11.10"]
[Round "5"]
[White "ViditYT"]
[Black "German_Bazeev"]
[Result "1/2-1/2"]
[WhiteElo "2874"]
[BlackElo "2740"]
[TimeControl "180+1"]
[EndTime "10:59:24 PST"]
[Termination "Game drawn by repetition"]

1. d4 {[%clk 0:03:00.9]} 1... Nf6 {[%clk 0:02:59.3]} 2. Nf3 {[%clk 0:03:00.3]}
2... e6 {[%clk 0:02:59.5]} 3. c4 {[%clk 0:02:59]} 3... d5 {[%clk 0:02:58.7]} 4.
g3 {[%clk 0:02:58]} 4... dxc4 {[%clk 0:02:46.3]} 5. Bg2 {[%clk 0:02:58]} 5...
Bd7 {[%clk 0:02:46.8]} 6. Nbd2 {[%clk 0:02:54.6]} 6... Bb4 {[%clk 0:02:43.3]} 7.
O-O {[%clk 0:02:52]} 7... Bxd2 {[%clk 0:02:43.4]} 8. Bxd2 {[%clk 0:02:39.9]}
8... Bc6 {[%clk 0:02:42.3]} 9. Qc2 {[%clk 0:02:38.6]} 9... b5 {[%clk 0:02:26.6]}
10. a4 {[%clk 0:02:28.2]} 10... Be4 {[%clk 0:02:24.1]} 11. Qc1 {[%clk
0:02:28.3]} 11... c6 {[%clk 0:02:19.1]} 12. Bg5 {[%clk 0:01:33.7]} 12... Nbd7
{[%clk 0:01:55]} 13. Qf4 {[%clk 0:01:14.2]} 13... Qb8 {[%clk 0:01:18.3]} 14.
Qxb8+ {[%clk 0:01:08.9]} 14... Rxb8 {[%clk 0:01:19.2]} 15. axb5 {[%clk
0:01:09.1]} 15... cxb5 {[%clk 0:01:20.1]} 16. Rxa7 {[%clk 0:01:09.4]} 16... O-O
{[%clk 0:01:14.3]} 17. Bf4 {[%clk 0:00:35.2]} 17... Ra8 {[%clk 0:01:14.1]} 18.
Rfa1 {[%clk 0:00:35.6]} 18... b4 {[%clk 0:00:57.8]} 19. Bd6 {[%clk 0:00:33.6]}
19... Rxa7 {[%clk 0:00:41.3]} 20. Rxa7 {[%clk 0:00:33.2]} 20... Rc8 {[%clk
0:00:16.6]} 21. Bxb4 {[%clk 0:00:33.2]} 21... Nb6 {[%clk 0:00:17]} 22. Ne5
{[%clk 0:00:29.8]} 22... Bxg2 {[%clk 0:00:16.2]} 23. Kxg2 {[%clk 0:00:30.7]}
23... Nfd5 {[%clk 0:00:13.2]} 24. Ba5 {[%clk 0:00:29.9]} 24... f6 {[%clk
0:00:13.1]} 25. Nd7 {[%clk 0:00:16.8]} 25... Nxd7 {[%clk 0:00:09.5]} 26. Rxd7
{[%clk 0:00:17.7]} 26... Rb8 {[%clk 0:00:08.9]} 27. e4 {[%clk 0:00:15.5]} 27...
Nb4 {[%clk 0:00:07.2]} 28. d5 {[%clk 0:00:13.3]} 28... exd5 {[%clk 0:00:06.6]}
29. exd5 {[%clk 0:00:14.2]} 29... Nd3 {[%clk 0:00:07.5]} 30. Bc3 {[%clk
0:00:04.4]} 30... Nxb2 {[%clk 0:00:07.7]} 31. d6 {[%clk 0:00:03]} 31... Na4
{[%clk 0:00:08.3]} 32. Bd4 {[%clk 0:00:02]} 32... c3 {[%clk 0:00:06.7]} 33. Ra7
{[%clk 0:00:01.5]} 33... c2 {[%clk 0:00:05.8]} 34. Rc7 {[%clk 0:00:02]} 34...
Rd8 {[%clk 0:00:05.8]} 35. Rxc2 {[%clk 0:00:01.7]} 35... Rxd6 {[%clk 0:00:05.4]}
36. Rc4 {[%clk 0:00:02.4]} 36... Nb6 {[%clk 0:00:04.6]} 37. Bxb6 {[%clk
0:00:01.9]} 37... Rxb6 {[%clk 0:00:04.7]} 38. Rc7 {[%clk 0:00:02.6]} 38... Rb3
{[%clk 0:00:04.9]} 39. h4 {[%clk 0:00:03.3]} 39... h5 {[%clk 0:00:05.2]} 40.
Rc8+ {[%clk 0:00:03.8]} 40... Kf7 {[%clk 0:00:05.5]} 41. Rc5 {[%clk 0:00:04.7]}
41... Kg6 {[%clk 0:00:06]} 42. Ra5 {[%clk 0:00:05]} 42... Rc3 {[%clk 0:00:06.3]}
43. Rd5 {[%clk 0:00:05.2]} 43... Rb3 {[%clk 0:00:06.6]} 44. Ra5 {[%clk
0:00:05.8]} 44... Rc3 {[%clk 0:00:06.8]} 45. Rb5 {[%clk 0:00:06.2]} 45... Rd3
{[%clk 0:00:07]} 46. Rc5 {[%clk 0:00:06.3]} 46... Rb3 {[%clk 0:00:07.1]} 47. Ra5
{[%clk 0:00:06.5]} 1/2-1/2

[Event "*** Titled Tuesday Blitz"]
[Site "Chess.com"]
[Date "2020.11.10"]
[Round "5"]
[White "rugbyclub"]
[Black "banane_verte"]
[Result "0-1"]
[WhiteElo "2220"]
[BlackElo "2397"]
[TimeControl "180+1"]
[EndTime "10:59:25 PST"]
[Termination "banane_verte won by resignation"]

1. d4 {[%clk 0:02:54.1]} 1... Nf6 {[%clk 0:02:56.7]} 2. Nf3 {[%clk 0:02:52.5]}
2... e6 {[%clk 0:02:56.8]} 3. Bg5 {[%clk 0:02:51.2]} 3... d5 {[%clk 0:02:56.6]}
4. Nbd2 {[%clk 0:02:49.7]} 4... Be7 {[%clk 0:02:55.3]} 5. e3 {[%clk 0:02:49.5]}
5... O-O {[%clk 0:02:53.7]} 6. Bd3 {[%clk 0:02:49.1]} 6... Nbd7 {[%clk
0:02:47.3]} 7. Qe2 {[%clk 0:02:43.6]} 7... b6 {[%clk 0:02:46.3]} 8. Ne5 {[%clk
0:02:39.7]} 8... Bb7 {[%clk 0:02:44.6]} 9. f4 {[%clk 0:02:36.1]} 9... Ne4 {[%clk
0:02:43.8]} 10. Bxe7 {[%clk 0:02:31.6]} 10... Qxe7 {[%clk 0:02:43.3]} 11. Nxd7
{[%clk 0:02:28.2]} 11... Qxd7 {[%clk 0:02:44.2]} 12. Bxe4 {[%clk 0:02:28.4]}
12... dxe4 {[%clk 0:02:45]} 13. O-O {[%clk 0:02:24.7]} 13... f5 {[%clk
0:02:42.6]} 14. g4 {[%clk 0:02:09.2]} 14... Rf6 {[%clk 0:02:34.2]} 15. Kh1
{[%clk 0:02:07.5]} 15... Kh8 {[%clk 0:02:28.5]} 16. Rg1 {[%clk 0:02:07]} 16...
Raf8 {[%clk 0:02:23.2]} 17. Qf2 {[%clk 0:01:59.9]} 17... Qb5 {[%clk 0:02:18]}
18. b3 {[%clk 0:01:57.8]} 18... Qb4 {[%clk 0:02:15.6]} 19. Nc4 {[%clk
0:01:52.7]} 19... c5 {[%clk 0:02:04.2]} 20. dxc5 {[%clk 0:01:43.7]} 20... Qxc5
{[%clk 0:02:03.7]} 21. Ne5 {[%clk 0:01:42.6]} 21... Rd8 {[%clk 0:01:56.1]} 22.
g5 {[%clk 0:01:39.9]} 22... Rff8 {[%clk 0:01:55.5]} 23. g6 {[%clk 0:01:39.6]}
23... h6 {[%clk 0:01:52.5]} 24. Nf7+ {[%clk 0:01:33.7]} 24... Kg8 {[%clk
0:01:52.9]} 25. Nxd8 {[%clk 0:01:32.4]} 25... Rxd8 {[%clk 0:01:53.8]} 26. Rad1
{[%clk 0:01:30.2]} 26... Rd5 {[%clk 0:01:50.5]} 27. c4 {[%clk 0:01:28.1]} 27...
Rd3 {[%clk 0:01:50.6]} 28. h4 {[%clk 0:01:25]} 28... Qd6 {[%clk 0:01:44.5]} 29.
Qe1 {[%clk 0:01:09]} 29... e5 {[%clk 0:01:37.7]} 30. fxe5 {[%clk 0:01:02.8]}
30... Qxe5 {[%clk 0:01:38.6]} 31. Qf1 {[%clk 0:00:38.6]} 31... Qf6 {[%clk
0:01:16.3]} 32. Qf4 {[%clk 0:00:32.1]} 32... Qd8 {[%clk 0:01:16.2]} 33. Rdf1
{[%clk 0:00:14.7]} 33... Bc8 {[%clk 0:01:14]} 34. Kh2 {[%clk 0:00:12.4]} 34...
Qf6 {[%clk 0:01:02.3]} 35. Rf2 {[%clk 0:00:11.9]} 35... Kf8 {[%clk 0:00:49.7]}
36. Rgg2 {[%clk 0:00:11.8]} 36... Ke7 {[%clk 0:00:46.5]} 37. Rd2 {[%clk
0:00:11.8]} 37... Qe6 {[%clk 0:00:37.7]} 38. Qc7+ {[%clk 0:00:08.7]} 38... Bd7
{[%clk 0:00:38]} 39. Qf4 {[%clk 0:00:07.6]} 39... Bc6 {[%clk 0:00:35.1]} 40.
Rxd3 {[%clk 0:00:07.3]} 40... exd3 {[%clk 0:00:35]} 41. Rd2 {[%clk 0:00:07.9]}
41... Be4 {[%clk 0:00:35]} 42. Qc7+ {[%clk 0:00:08.1]} 42... Kf6 {[%clk
0:00:34.4]} 43. Qd8+ {[%clk 0:00:07.6]} 43... Kxg6 {[%clk 0:00:34.1]} 44. Qd4
{[%clk 0:00:04.4]} 44... Qf6 {[%clk 0:00:31]} 45. Qxf6+ {[%clk 0:00:04.5]} 45...
Kxf6 {[%clk 0:00:31.9]} 46. Kg3 {[%clk 0:00:05]} 46... g5 {[%clk 0:00:32.2]} 47.
hxg5+ {[%clk 0:00:05.6]} 47... hxg5 {[%clk 0:00:33.1]} 48. Kf2 {[%clk
0:00:05.4]} 48... Ke5 {[%clk 0:00:33.5]} 49. Ke1 {[%clk 0:00:04.7]} 49... f4
{[%clk 0:00:31.6]} 50. exf4+ {[%clk 0:00:05.6]} 50... Kxf4 {[%clk 0:00:32.5]}
51. Rh2 {[%clk 0:00:06.2]} 51... Ke3 {[%clk 0:00:29.3]} 52. Rh8 {[%clk
0:00:05.3]} 52... d2+ {[%clk 0:00:28.2]} 53. Kd1 {[%clk 0:00:05.6]} 53... Bf3+
{[%clk 0:00:28.8]} 0-1

[Event "*** Titled Tuesday Blitz"]
[Site "Chess.com"]
[Date "2020.11.10"]
[Round "5"]
[White "redbaron8888"]
[Black "alexrustemov"]
[Result "0-1"]
[WhiteElo "2539"]
[BlackElo "2726"]
[TimeControl "180+1"]
[EndTime "10:59:29 PST"]
[Termination "alexrustemov won by resignation"]

1. e4 {[%clk 0:03:00.9]} 1... e6 {[%clk 0:02:59.5]} 2. Qe2 {[%clk 0:03:00.3]}
2... d5 {[%clk 0:03:00.4]} 3. exd5 {[%clk 0:03:00]} 3... Qxd5 {[%clk 0:03:01]}
4. Nc3 {[%clk 0:03:00.7]} 4... Qd8 {[%clk 0:03:01.4]} 5. g3 {[%clk 0:02:59.4]}
5... c5 {[%clk 0:03:02]} 6. Bg2 {[%clk 0:02:59.3]} 6... Ne7 {[%clk 0:03:02.7]}
7. Nf3 {[%clk 0:02:55.9]} 7... Nbc6 {[%clk 0:03:03.2]} 8. O-O {[%clk 0:02:54.6]}
8... Nf5 {[%clk 0:03:03.7]} 9. Ne4 {[%clk 0:02:52.8]} 9... Be7 {[%clk
0:03:02.8]} 10. d3 {[%clk 0:02:51.5]} 10... O-O {[%clk 0:03:01.6]} 11. c3 {[%clk
0:02:36.1]} 11... b6 {[%clk 0:03:01.3]} 12. Bf4 {[%clk 0:02:35.1]} 12... Bb7
{[%clk 0:02:59.6]} 13. Rad1 {[%clk 0:02:35]} 13... Rc8 {[%clk 0:02:56.6]} 14.
Rfe1 {[%clk 0:02:31]} 14... Qd7 {[%clk 0:02:56.1]} 15. h4 {[%clk 0:02:26.9]}
15... Rfd8 {[%clk 0:02:55.3]} 16. h5 {[%clk 0:02:26.8]} 16... h6 {[%clk
0:02:54.9]} 17. g4 {[%clk 0:02:22.3]} 17... Nd6 {[%clk 0:02:54.2]} 18. g5 {[%clk
0:02:16.1]} 18... hxg5 {[%clk 0:02:52.3]} 19. Nexg5 {[%clk 0:02:12.3]} 19... Nf5
{[%clk 0:02:48.9]} 20. Bh3 {[%clk 0:02:08.4]} 20... Bxg5 {[%clk 0:02:40.2]} 21.
Nxg5 {[%clk 0:01:59.3]} 21... Qd5 {[%clk 0:02:29.3]} 22. Bg2 {[%clk 0:01:57]}
22... Qxg2+ {[%clk 0:02:28]} 23. Kxg2 {[%clk 0:01:55.8]} 23... Ncd4+ {[%clk
0:02:28.5]} 24. Qe4 {[%clk 0:01:50.8]} 24... Nh4+ {[%clk 0:01:56.9]} 25. Kh3
{[%clk 0:01:46.8]} 25... Bxe4 {[%clk 0:01:51.1]} 26. dxe4 {[%clk 0:01:46.9]}
26... Ndf3 {[%clk 0:01:51.2]} 27. Rxd8+ {[%clk 0:01:14.7]} 27... Rxd8 {[%clk
0:01:52.1]} 28. Re3 {[%clk 0:01:08.4]} 28... e5 {[%clk 0:01:45.1]} 29. Bxe5
{[%clk 0:00:49]} 29... Nxe5 {[%clk 0:01:37.7]} 30. Kxh4 {[%clk 0:00:48.8]} 30...
Rd2 {[%clk 0:01:31.3]} 31. Nf3 {[%clk 0:00:43]} 31... Nxf3+ {[%clk 0:01:23.8]}
32. Rxf3 {[%clk 0:00:43.9]} 32... Rxb2 {[%clk 0:01:23.7]} 33. Rd3 {[%clk
0:00:38.9]} 33... Rxa2 {[%clk 0:01:21.9]} 34. Rd8+ {[%clk 0:00:36.1]} 34... Kh7
{[%clk 0:01:22]} 35. f4 {[%clk 0:00:36.8]} 35... Ra4 {[%clk 0:01:15.2]} 36. Rd7
{[%clk 0:00:33.7]} 36... f6 {[%clk 0:01:08.1]} 37. Rxa7 {[%clk 0:00:26.3]} 37...
Rxe4 {[%clk 0:01:07.1]} 38. Kg4 {[%clk 0:00:26.1]} 38... Rc4 {[%clk 0:01:02.2]}
39. Rb7 {[%clk 0:00:25.3]} 39... Rxc3 {[%clk 0:01:02]} 40. Rxb6 {[%clk
0:00:25.6]} 40... Rc1 {[%clk 0:01:02.5]} 41. Kf3 {[%clk 0:00:20.1]} 41... c4
{[%clk 0:01:02.5]} 42. Rb8 {[%clk 0:00:18.5]} 42... c3 {[%clk 0:01:02.4]} 43.
Ke2 {[%clk 0:00:16.9]} 43... c2 {[%clk 0:00:53]} 44. Kd2 {[%clk 0:00:16.7]}
44... Rf1 {[%clk 0:00:52.8]} 45. Kxc2 {[%clk 0:00:16.8]} 45... Rxf4 {[%clk
0:00:53.2]} 46. Rb5 {[%clk 0:00:13.9]} 46... Rd4 {[%clk 0:00:52.5]} 47. Kc3
{[%clk 0:00:13.8]} 47... Rd8 {[%clk 0:00:51.8]} 48. Rf5 {[%clk 0:00:13.2]} 48...
Kh6 {[%clk 0:00:51.6]} 49. Kc2 {[%clk 0:00:12.7]} 49... Rd4 {[%clk 0:00:51.1]}
50. Rb5 {[%clk 0:00:12.1]} 50... Rg4 {[%clk 0:00:51.8]} 51. Kd3 {[%clk
0:00:12.3]} 51... Rg5 {[%clk 0:00:52.2]} 52. Rb8 {[%clk 0:00:12]} 52... Kxh5
{[%clk 0:00:52.1]} 53. Ke4 {[%clk 0:00:12.5]} 53... Kg6 {[%clk 0:00:52.1]} 54.
Kf4 {[%clk 0:00:12.6]} 54... Ra5 {[%clk 0:00:52.1]} 55. Rb4 {[%clk 0:00:11.6]}
55... Kh6 {[%clk 0:00:48.7]} 56. Kg4 {[%clk 0:00:11]} 56... g5 {[%clk
0:00:46.5]} 57. Rb8 {[%clk 0:00:10.4]} 57... Ra4+ {[%clk 0:00:45.9]} 58. Kf5
{[%clk 0:00:10]} 58... Rf4+ {[%clk 0:00:45.7]} 59. Ke6 {[%clk 0:00:10.4]} 59...
Kh5 {[%clk 0:00:43.7]} 60. Rh8+ {[%clk 0:00:08.9]} 60... Kg4 {[%clk 0:00:43.9]}
61. Rh1 {[%clk 0:00:09.8]} 61... Kf3 {[%clk 0:00:44]} 62. Rf1+ {[%clk
0:00:09.6]} 62... Kg2 {[%clk 0:00:44.2]} 63. Rb1 {[%clk 0:00:09.2]} 63... g4
{[%clk 0:00:44.4]} 64. Kd5 {[%clk 0:00:09.5]} 64... g3 {[%clk 0:00:44]} 65. Rb2+
{[%clk 0:00:08.8]} 65... Kh3 {[%clk 0:00:43.6]} 66. Rb8 {[%clk 0:00:09.7]} 66...
g2 {[%clk 0:00:43.4]} 0-1

[Event "*** Titled Tuesday Blitz"]
[Site "Chess.com"]
[Date "2020.11.10"]
[Round "5"]
[White "albi1999"]
[Black "Zarikovs1999"]
[Result "1-0"]
[WhiteElo "2546"]
[BlackElo "2369"]
[TimeControl "180+1"]
[EndTime "10:59:30 PST"]
[Termination "albi1999 won on time"]

1. d4 {[%clk 0:03:00.9]} 1... Nf6 {[%clk 0:02:57.2]} 2. c4 {[%clk 0:03:01.1]}
2... c5 {[%clk 0:02:55.4]} 3. d5 {[%clk 0:03:01.2]} 3... b5 {[%clk 0:02:55.9]}
4. cxb5 {[%clk 0:03:02.1]} 4... a6 {[%clk 0:02:56.4]} 5. bxa6 {[%clk 0:03:03]}
5... g6 {[%clk 0:02:57]} 6. Nc3 {[%clk 0:03:02.2]} 6... Bg7 {[%clk 0:02:57.3]}
7. e4 {[%clk 0:03:01.7]} 7... O-O {[%clk 0:02:57.7]} 8. Nf3 {[%clk 0:03:02.1]}
8... Qa5 {[%clk 0:02:57.6]} 9. Bd2 {[%clk 0:03:02.2]} 9... Bxa6 {[%clk
0:02:56.8]} 10. Be2 {[%clk 0:03:02.4]} 10... d6 {[%clk 0:02:41.6]} 11. O-O
{[%clk 0:03:01.4]} 11... Bxe2 {[%clk 0:02:40.9]} 12. Qxe2 {[%clk 0:03:02.3]}
12... Qa6 {[%clk 0:02:39.6]} 13. Qd1 {[%clk 0:03:00.1]} 13... Nbd7 {[%clk
0:02:38.3]} 14. Qc2 {[%clk 0:02:58.4]} 14... Rfb8 {[%clk 0:02:32.9]} 15. h3
{[%clk 0:02:56.8]} 15... Nb6 {[%clk 0:02:12.8]} 16. b3 {[%clk 0:02:50.9]} 16...
e6 {[%clk 0:01:56.5]} 17. dxe6 {[%clk 0:02:49]} 17... fxe6 {[%clk 0:01:57.4]}
18. e5 {[%clk 0:02:48.7]} 18... dxe5 {[%clk 0:01:53.2]} 19. Nxe5 {[%clk
0:02:40.6]} 19... Nbd5 {[%clk 0:01:32.1]} 20. Rfe1 {[%clk 0:02:33]} 20... Rd8
{[%clk 0:01:22.7]} 21. Nxd5 {[%clk 0:02:27.3]} 21... Rxd5 {[%clk 0:01:21.7]} 22.
Bc3 {[%clk 0:02:24.9]} 22... Rad8 {[%clk 0:01:20.5]} 23. Nc4 {[%clk 0:02:22.4]}
23... Qc6 {[%clk 0:01:03.7]} 24. Qe2 {[%clk 0:02:19.4]} 24... Re8 {[%clk
0:00:56.6]} 25. Qf3 {[%clk 0:02:14.4]} 25... Rf8 {[%clk 0:00:50]} 26. Qe2 {[%clk
0:02:09.5]} 26... Re8 {[%clk 0:00:49.7]} 27. Rad1 {[%clk 0:02:03.3]} 27... Red8
{[%clk 0:00:44.5]} 28. Ne3 {[%clk 0:01:56.4]} 28... Rxd1 {[%clk 0:00:29.2]} 29.
Rxd1 {[%clk 0:01:57.3]} 29... Rd7 {[%clk 0:00:26.8]} 30. Rxd7 {[%clk 0:01:55.5]}
30... Qxd7 {[%clk 0:00:26.4]} 31. Qc4 {[%clk 0:01:50]} 31... Qd6 {[%clk
0:00:20]} 32. a4 {[%clk 0:01:44.2]} 32... Nd5 {[%clk 0:00:20.2]} 33. Bxg7 {[%clk
0:01:41.9]} 33... Kxg7 {[%clk 0:00:18.1]} 34. Qd3 {[%clk 0:01:37]} 34... Qe5
{[%clk 0:00:16.6]} 35. Qd2 {[%clk 0:01:29.4]} 35... Qa1+ {[%clk 0:00:12.8]} 36.
Kh2 {[%clk 0:01:28.6]} 36... Qe5+ {[%clk 0:00:13.4]} 37. g3 {[%clk 0:01:28.5]}
37... Nf6 {[%clk 0:00:13.7]} 38. Nc4 {[%clk 0:01:24.5]} 38... Qf5 {[%clk
0:00:09.7]} 39. Qe2 {[%clk 0:01:13.5]} 39... Ne4 {[%clk 0:00:09.4]} 40. Kg2
{[%clk 0:01:09.9]} 40... Ng5 {[%clk 0:00:09.3]} 41. Qe5+ {[%clk 0:01:09.9]}
41... Qxe5 {[%clk 0:00:08.4]} 42. Nxe5 {[%clk 0:01:10.8]} 42... Ne4 {[%clk
0:00:09.3]} 43. a5 {[%clk 0:01:03.9]} 43... Nd6 {[%clk 0:00:09.8]} 44. a6 {[%clk
0:01:01.8]} 44... Nb5 {[%clk 0:00:10.3]} 45. Nc6 {[%clk 0:01:01]} 45... Kf7
{[%clk 0:00:10.5]} 46. a7 {[%clk 0:01:00.1]} 46... Nc7 {[%clk 0:00:11.1]} 47.
Kf3 {[%clk 0:00:50.7]} 47... Ke8 {[%clk 0:00:10.3]} 48. Ke4 {[%clk 0:00:51]}
48... Kd7 {[%clk 0:00:10.9]} 49. Ne5+ {[%clk 0:00:50.5]} 49... Kc8 {[%clk
0:00:11.2]} 50. Nd3 {[%clk 0:00:49.8]} 50... Kb7 {[%clk 0:00:07.9]} 51. Nxc5+
{[%clk 0:00:50]} 51... Kxa7 {[%clk 0:00:08.3]} 52. Ke5 {[%clk 0:00:50.9]} 52...
Kb6 {[%clk 0:00:07.2]} 53. Nxe6 {[%clk 0:00:51.4]} 53... Nb5 {[%clk 0:00:06.7]}
54. Nf8 {[%clk 0:00:50.7]} 54... Nc3 {[%clk 0:00:05.7]} 55. Nxh7 {[%clk
0:00:50.7]} 55... Nd1 {[%clk 0:00:04.8]} 56. f4 {[%clk 0:00:50.7]} 56... Nf2
{[%clk 0:00:05.2]} 57. h4 {[%clk 0:00:50.1]} 57... Nd3+ {[%clk 0:00:04.4]} 58.
Kf6 {[%clk 0:00:49.4]} 58... Nc5 {[%clk 0:00:04.4]} 59. Kxg6 {[%clk 0:00:49.2]}
59... Ne6 {[%clk 0:00:04.7]} 60. f5 {[%clk 0:00:48.3]} 60... Nd4 {[%clk
0:00:05.2]} 61. f6 {[%clk 0:00:48.7]} 61... Nc6 {[%clk 0:00:05.9]} 62. f7 {[%clk
0:00:49.1]} 1-0